fUST/lending_fUST_20250225
["ID","MTS","AMOUNT","RATE_DAILY","PERIOD"]
[354431931,1740490242840,-110195.0,0.00055,120]
[354431932,1740490242849,-340.25,0.00055,10]
[354431933,1740490242859,-1000.0,0.00055068,120]
[354431934,1740490242869,-1244.06730222,0.00055242,30]
[354431935,1740490242878,-6121.45035495,0.00055242,2]
[354431937,1740490242888,-142024.23273063,0.000553,120]
[354431938,1740490242898,-160.0,0.00055341,90]
[354431940,1740490242907,-502.96062112,0.00055342,30]
[354431942,1740490242917,-500.0,0.00055342,120]
[354431944,1740490242928,-500.0,0.00055342,120]
[354431946,1740490242937,-670.65,0.00055342,120]
[354431947,1740490242947,-500.0,0.00055342,120]
[354431949,1740490242956,-500.0,0.00055342,120]
[354431952,1740490242965,-500.0,0.00055342,120]
[354431954,1740490242975,-500.0,0.00055342,120]
[354431956,1740490242984,-500.0,0.00055342,120]
[354431958,1740490242993,-500.0,0.00055342,2]
[354431960,1740490243002,-502.72845864,0.00055342,120]
[354431961,1740490243012,-500.0,0.00055342,120]
[354431963,1740490243086,-500.0,0.00055342,120]
[354431965,1740490243095,-500.0,0.00055342,120]
[354431966,1740490243105,-492.97968129,0.00055342,120]
[354431968,1740490243114,-500.0,0.00055342,120]
[354431971,1740490243123,-500.0,0.00055342,120]
[354431973,1740490243133,-500.0,0.00055342,120]
[354431974,1740490243143,-500.0,0.00055342,120]
[354431977,1740490243153,-500.0,0.00055342,120]
[354431978,1740490243163,-500.0,0.00055342,120]
[354431979,1740490243174,-500.0,0.00055342,120]
[354431980,1740490243184,-500.0,0.00055342,120]
[354431982,1740490243194,-500.0,0.00055342,120]
[354431983,1740490243203,-500.0,0.00055342,120]
[354431984,1740490243213,-500.0,0.00055342,120]
[354431985,1740490243223,-500.0,0.00055342,120]
[354431986,1740490243233,-500.0,0.00055342,120]
[354431987,1740490243242,-500.0,0.00055342,120]
[354431988,1740490243252,-954.82,0.00055342,120]
[354431989,1740490243262,-500.0,0.00055342,120]
[354431990,1740490243272,-711.39,0.00055342,120]
[354431991,1740490243282,-500.0,0.00055342,120]
[354431992,1740490243293,-500.0,0.00055342,120]
[354431993,1740490243303,-500.0,0.00055342,120]
[354431994,1740490243316,-870.66,0.00055342,120]
[354431995,1740490243326,-500.0,0.00055342,120]
[354431996,1740490243335,-500.0,0.00055342,120]
[354431997,1740490243346,-500.0,0.00055342,120]
[354431998,1740490243355,-500.0,0.00055342,120]
[354431999,1740490243365,-500.0,0.00055342,120]
[354432000,1740490243374,-675.07,0.00055342,120]
[354432001,1740490243383,-599.99,0.00055342,120]
[354432002,1740490243394,-503.28434814,0.00055342,120]
[354432003,1740490243404,-639.37,0.00055342,120]
[354432004,1740490243414,-743.93,0.00055342,120]
[354432005,1740490243424,-500.0,0.00055342,120]
[354432006,1740490243434,-250.0,0.00055342,120]
[354432007,1740490243444,-500.0,0.00055342,120]
[354432008,1740490243453,-500.0,0.00055342,120]
[354432009,1740490243463,-500.0,0.00055342,120]
[354432010,1740490243472,-500.0,0.00055342,120]
[354432011,1740490243482,-500.0,0.00055342,120]
[354432012,1740490243505,-463.94438281,0.00055342,120]
[354432013,1740490243524,-889.61,0.00055342,120]
[354432014,1740490243544,-687.48,0.00055342,120]
[354432015,1740490243565,-500.0,0.00055342,120]
[354432016,1740490243585,-500.0,0.00055342,120]
[354432017,1740490243604,-500.0,0.00055342,120]
[354432018,1740490243621,-870.39,0.00055342,120]
[354432019,1740490243638,-500.0,0.00055342,120]
[354432020,1740490243657,-487.64706727,0.00055342,120]
[354432021,1740490243679,-600.0,0.00055342,120]
[354432022,1740490243696,-500.0,0.00055342,120]
[354432023,1740490243711,-500.0,0.00055342,120]
[354432024,1740490243730,-544.92559481,0.00055342,120]
[354432025,1740490243745,-500.0,0.00055342,120]
[354432026,1740490243760,-500.0,0.00055342,120]
[354432027,1740490243775,-500.0,0.00055342,120]
[354432028,1740490243791,-500.0,0.00055342,120]
[354432029,1740490243807,-500.0,0.00055342,120]
[354432030,1740490243822,-500.0,0.00055342,120]
[354432031,1740490243837,-500.0,0.00055342,120]
[354432032,1740490243853,-500.0,0.00055342,120]
[354432033,1740490243869,-500.0,0.00055342,120]
[354432034,1740490243885,-500.0,0.00055342,120]
[354432035,1740490243901,-631.07,0.00055342,120]
[354432036,1740490243917,-500.0,0.00055342,120]
[354432037,1740490243934,-500.0,0.00055342,120]
[354432038,1740490243950,-500.0,0.00055342,120]
[354432039,1740490243966,-500.0,0.00055342,120]
[354432040,1740490243982,-500.0,0.00055342,120]
[354432041,1740490243997,-500.0,0.00055342,120]
[354432042,1740490244012,-500.0,0.00055342,120]
[354432043,1740490244029,-2860.45,0.00055342,120]
[354432044,1740490244045,-500.0,0.00055342,120]
[354432045,1740490244061,-503.83946051,0.00055342,120]
[354432046,1740490244077,-502.32061473,0.00055342,120]
[354432047,1740490244093,-500.0,0.00055342,120]
[354432048,1740490244108,-501.38811267,0.00055342,120]
[354432049,1740490244124,-500.0,0.00055342,120]
[354432050,1740490244140,-500.0,0.00055342,120]
[354432051,1740490244155,-500.0,0.00055342,120]
[354432052,1740490244171,-254.25483756,0.00055342,120]
[354432053,1740490244287,-502.67921079,0.00055342,120]
[354432054,1740490244301,-575.58,0.00055342,120]
[354432055,1740490244310,-500.0,0.00055342,120]
[354432056,1740490244322,-500.0,0.00055342,120]
[354432057,1740490244332,-500.0,0.00055342,120]
[354432058,1740490244341,-580.0,0.00055342,120]
[354432059,1740490244350,-500.0,0.00055342,120]
[354432060,1740490244361,-500.0,0.00055342,120]
[354432061,1740490244371,-854.33,0.00055342,120]
[354432062,1740490244381,-500.0,0.00055342,120]
[354432063,1740490244392,-233.02848217,0.00055342,120]
[354432064,1740490244402,-500.0,0.00055342,120]
[354432065,1740490244412,-500.0,0.00055342,120]
[354432066,1740490244421,-500.0,0.00055342,120]
[354432067,1740490244430,-500.0,0.00055342,120]
[354432068,1740490244439,-500.0,0.00055342,120]
[354432069,1740490244449,-500.0,0.00055342,120]
[354432070,1740490244459,-500.0,0.00055342,120]
[354432071,1740490244468,-505.51205281,0.00055342,120]
[354432072,1740490244478,-677.67,0.00055342,120]
[354432073,1740490244487,-500.0,0.00055342,120]
[354432074,1740490244497,-500.0,0.00055342,120]
[354432075,1740490244507,-602.86,0.00055342,120]
[354432076,1740490244516,-500.0,0.00055342,120]
[354432077,1740490244525,-683.64,0.00055342,120]
[354432078,1740490244535,-500.0,0.00055342,120]
[354432079,1740490244545,-500.0,0.00055342,120]
[354432080,1740490244554,-500.0,0.00055342,120]
[354432081,1740490244564,-447.01370182,0.00055342,120]
[354432082,1740490244573,-500.0,0.00055342,120]
[354432083,1740490244583,-500.0,0.00055342,120]
[354432084,1740490244592,-500.0,0.00055342,120]
[354432085,1740490244602,-500.0,0.00055342,120]
[354432086,1740490244611,-683.0,0.00055342,120]
[354432087,1740490244621,-500.0,0.00055342,120]
[354432088,1740490244631,-508.10570834,0.00055342,120]
[354432089,1740490244641,-500.0,0.00055342,120]
[354432090,1740490244650,-911.81,0.00055342,120]
[354432091,1740490244660,-500.0,0.00055342,120]
[354432092,1740490244670,-500.0,0.00055342,120]
[354432093,1740490244685,-500.0,0.00055342,120]
[354432094,1740490244697,-500.0,0.00055342,120]
[354432095,1740490244707,-500.0,0.00055342,120]
[354432096,1740490244716,-6541.01,0.00055342,120]
[354432097,1740490244725,-624.97,0.00055342,120]
[354432098,1740490244737,-609.27,0.00055342,120]
[354432099,1740490244746,-712.64,0.00055342,120]
[354432100,1740490244756,-500.0,0.00055342,120]
[354432101,1740490244765,-500.0,0.00055342,120]
[354432102,1740490244774,-803.68,0.00055342,120]
[354432103,1740490244783,-2390.7,0.00055342,120]
[354432104,1740490244792,-500.0,0.00055342,120]
[354432105,1740490244802,-316.29345168,0.00055342,120]
[354432106,1740490244811,-1305.87,0.00055342,120]
[354432107,1740490244821,-500.0,0.00055342,120]
[354432108,1740490244831,-495.4709574,0.00055342,120]
[354432109,1740490244841,-500.0,0.00055342,120]
[354432111,1740490244850,-500.0,0.00055342,120]
[354432112,1740490244859,-500.0,0.00055342,120]
[354432113,1740490244869,-613.07,0.00055342,120]
[354432114,1740490244878,-285.7,0.00055342,120]
[354432116,1740490244888,-151.0,0.00055342,120]
[354432118,1740490244897,-500.0,0.00055342,120]
[354432120,1740490244908,-285.7,0.00055342,120]
[354432122,1740490244917,-151.0,0.00055342,120]
[354432123,1740490244927,-151.0,0.00055342,120]
[354432124,1740490244936,-500.0,0.00055342,120]
[354432125,1740490244946,-500.0,0.00055342,120]
[354432126,1740490244955,-500.0,0.00055342,120]
[354432127,1740490244965,-500.0,0.00055342,120]
[354432128,1740490244974,-500.0,0.00055342,120]
[354432129,1740490244984,-504.71884495,0.00055342,120]
[354432130,1740490244994,-500.0,0.00055342,120]
[354432131,1740490245004,-500.0,0.00055342,120]
[354432132,1740490245014,-500.0,0.00055342,120]
[354432133,1740490245024,-500.0,0.00055342,120]
[354432134,1740490245034,-1708.65,0.00055342,120]
[354432135,1740490245043,-3156.68,0.00055342,120]
[354432136,1740490245053,-455.09280904,0.00055342,120]
[354432137,1740490245063,-500.0,0.00055342,120]
[354432138,1740490245072,-23896.25,0.00055342,6]
[354432139,1740490245082,-500.0,0.00055342,120]
[354432140,1740490245092,-837.5,0.00055342,120]
[354432141,1740490245101,-502.71005789,0.00055342,120]
[354432142,1740490245111,-500.0,0.00055342,120]
[354432143,1740490245121,-500.0,0.00055342,120]
[354432144,1740490245130,-500.0,0.00055342,120]
[354432145,1740490245140,-795.32,0.00055342,120]
[354432146,1740490245151,-500.0,0.00055342,120]
[354432147,1740490245160,-500.0,0.00055342,120]
[354432148,1740490245170,-2011.3,0.00055342,120]
[354432149,1740490245179,-1593.04,0.00055342,120]
[354432150,1740490245188,-500.0,0.00055342,120]
[354432151,1740490245198,-810.98,0.00055342,120]
[354432152,1740490245207,-500.0,0.00055342,120]
[354432153,1740490245217,-1286.64,0.00055342,120]
[354432154,1740490245227,-500.0,0.00055342,120]
[354432155,1740490245237,-502.26761366,0.00055342,120]
[354432156,1740490245247,-9951.0,0.00055342,120]
[354432157,1740490245256,-500.0,0.00055342,120]
[354432158,1740490245266,-500.0,0.00055342,120]
[354432159,1740490245276,-500.0,0.00055342,120]
[354432160,1740490245286,-1545.32,0.00055342,120]
[354432161,1740490245295,-500.0,0.00055342,120]
[354432162,1740490245306,-508.35,0.00055342,120]
[354432163,1740490245319,-500.0,0.00055342,120]
[354432164,1740490245329,-500.0,0.00055342,120]
[354432165,1740490245339,-528.65,0.00055342,120]
[354432166,1740490245348,-154.20104424,0.00055342,120]
[354432167,1740490245358,-500.0,0.00055342,30]
[354432168,1740490245368,-1220.46,0.00055342,120]
[354432169,1740490245377,-500.0,0.00055342,120]
[354432170,1740490245388,-500.0,0.00055342,120]
[354432171,1740490245398,-500.0,0.00055342,120]
[354432172,1740490245408,-502.3300511,0.00055342,120]
[354432173,1740490245417,-5596.61,0.00055342,120]
[354432174,1740490245427,-606.94,0.00055342,120]
[354432175,1740490245436,-500.0,0.00055342,120]
[354432176,1740490245446,-500.0,0.00055342,120]
[354432177,1740490245455,-1689.69,0.00055342,120]
[354432178,1740490245465,-500.0,0.00055342,120]
[354432179,1740490245475,-658.04,0.00055342,120]
[354432180,1740490245484,-151.0,0.00055342,120]
[354432181,1740490245570,-500.0,0.00055342,120]
[354432182,1740490245582,-1053.98,0.00055342,120]
[354432183,1740490245592,-619.34,0.00055342,120]
[354432184,1740490245602,-500.0,0.00055342,120]
[354432185,1740490245612,-151.0,0.00055342,120]
[354432186,1740490245621,-3348.36,0.00055342,3]
[354432187,1740490245631,-500.0,0.00055342,120]
[354432188,1740490245640,-151.0,0.00055342,5]
[354432189,1740490245650,-151.0,0.00055342,120]
[354432190,1740490245660,-481.838,0.00055342,120]
[354432191,1740490245669,-500.0,0.00055342,120]
[354432192,1740490245679,-139306.27,0.00055342,7]
[354432193,1740490245689,-1035.18,0.00055342,120]
[354432194,1740490245699,-1329.56,0.00055342,120]
[354432195,1740490245709,-500.0,0.00055342,120]
[354432196,1740490245720,-500.0,0.00055342,120]
[354432197,1740490245730,-500.0,0.00055342,120]
[354432198,1740490245740,-504.77649228,0.00055342,120]
[354432199,1740490245750,-2780.94,0.00055342,120]
[354432200,1740490245760,-500.0,0.00055342,120]
[354432201,1740490245771,-500.0,0.00055342,120]
[354432202,1740490245781,-500.0,0.00055342,120]
[354432203,1740490245791,-500.0,0.00055342,120]
[354432204,1740490245801,-559.05,0.00055342,120]
[354432205,1740490245812,-1837.72,0.00055342,120]
[354432206,1740490245822,-151.229525,0.00055342,120]
[354432207,1740490245833,-677.85,0.00055342,120]
[354432208,1740490245843,-500.0,0.00055342,120]
[354432209,1740490245853,-500.0,0.00055342,120]
[354432210,1740490245863,-541.89890042,0.00055342,120]
[354432211,1740490245872,-151.0,0.00055342,120]
[354432212,1740490245882,-14996.43,0.00055342,120]
[354432213,1740490245892,-500.0,0.00055342,120]
[354432214,1740490245903,-150.02069452,0.00055342,120]
[354432215,1740490245912,-151.0,0.00055342,120]
[354432216,1740490245923,-151.0,0.00055342,120]
[354432217,1740490245933,-500.0,0.00055342,120]
[354432218,1740490245944,-696.2,0.00055342,120]
[354432219,1740490245953,-700.9,0.00055342,120]
[354432220,1740490245963,-829.91,0.00055342,120]
[354432221,1740490245973,-500.0,0.00055342,120]
[354432222,1740490245983,-151.0,0.00055342,120]
[354432223,1740490245993,-500.0,0.00055342,120]
[354432224,1740490246003,-658.48,0.00055342,120]
[354432225,1740490246012,-981.67,0.00055342,120]
[354432226,1740490246022,-151.0,0.00055342,120]
[354432227,1740490246032,-1000.0,0.00055342,20]
[354432228,1740490246041,-500.0,0.00055342,120]
[354432229,1740490246051,-956.13,0.00055342,120]
[354432230,1740490246061,-611.4,0.00055342,120]
[354432231,1740490246071,-3500.0,0.00055342,120]
[354432232,1740490246081,-500.0,0.00055342,120]
[354432233,1740490246091,-501.51615668,0.00055342,120]
[354432234,1740490246100,-788.79,0.00055342,120]
[354432236,1740490246110,-4711.15,0.00055342,120]
[354432238,1740490246120,-720.41,0.00055342,120]
[354432240,1740490246130,-534.13,0.00055342,120]
[354432241,1740490246139,-500.0,0.00055342,120]
[354432243,1740490246149,-22810.42,0.00055342,120]
[354432245,1740490246159,-592.37,0.00055342,120]
[354432247,1740490246169,-2442.41,0.00055342,120]
[354432248,1740490246178,-500.0,0.00055342,120]
[354432249,1740490246188,-2599.63,0.00055342,120]
[354432250,1740490246198,-500.0,0.00055342,120]
[354432251,1740490246208,-500.0,0.00055342,120]
[354432252,1740490246217,-500.0,0.00055342,120]
[354432253,1740490246227,-500.0,0.00055342,120]
[354432254,1740490246237,-500.0,0.00055342,120]
[354432255,1740490246247,-737.11,0.00055342,120]
[354432256,1740490246257,-500.0,0.00055373,15]
[354432257,1740490246266,-500.0,0.00055373,15]
[354432258,1740490246276,-500.0,0.00055373,15]
[354432259,1740490246286,-500.0,0.00055373,15]
[354432260,1740490246295,-510.64443134,0.00055373,14]
[354432261,1740490246307,-500.0,0.00055373,15]
[354432262,1740490246317,-500.0,0.00055373,15]
[354432263,1740490246327,-500.0,0.00055373,14]
[354432264,1740490246337,-500.0,0.00055373,15]
[354432265,1740490246347,-500.0,0.00055373,15]
[354432266,1740490246359,-500.0,0.00055373,15]
[354432267,1740490246368,-412.55174326,0.00055373,15]
[354432268,1740490246378,-500.0,0.00055373,10]
[354432270,1740490246389,-500.0,0.00055373,15]
[354432272,1740490246399,-5000.0,0.000554,120]
[354432273,1740490246408,-69964.55666913,0.000555,120]
[354432279,1740490246873,-500.0,0.00054794,120]
[354432280,1740490246883,-224.78789557,0.00055342,120]
[354432281,1740490246895,-275.21210443,0.00055342,120]
[354432282,1740490246906,-37.05119557,0.000555,120]
[354432283,1740490246918,-85998.3921353,0.000555,120]
[354432284,1740490246928,-151.0,0.000555,120]
[354432285,1740490246938,-151.0,0.000555,120]
[354432286,1740490246948,-151.0,0.000555,120]
[354432287,1740490246958,-151.0,0.000555,120]
[354432288,1740490246968,-151.0,0.000555,120]
[354432289,1740490246978,-151.0,0.000555,120]
[354432290,1740490246987,-151.0,0.000555,120]
[354432291,1740490246997,-151.0,0.000555,120]
[354432292,1740490247007,-160.3474055,0.00055549,90]
[354432293,1740490247016,-10543.9772145,0.0005555,120]
[354432294,1740490247028,-7265.73414684,0.0005555,61]
[354432295,1740490247037,-5555.0,0.0005555,120]
[354432296,1740490247047,-5555.0,0.0005555,120]
[354432297,1740490247057,-5555.0,0.0005555,120]
[354432298,1740490247066,-5555.0,0.0005555,120]
[354432299,1740490247076,-5555.0,0.0005555,120]
[354432300,1740490247086,-5555.0,0.0005555,120]
[354432301,1740490247096,-5555.0,0.0005555,120]
[354432302,1740490247106,-5555.0,0.0005555,120]
[354432303,1740490247116,-5555.0,0.0005555,120]
[354432304,1740490247126,-5555.0,0.0005555,120]
[354432305,1740490247137,-5555.0,0.0005555,120]
[354432306,1740490247147,-5555.0,0.0005555,120]
[354432307,1740490247157,-5555.0,0.0005555,120]
[354432308,1740490247166,-5555.0,0.0005555,120]
[354432309,1740490247176,-5555.0,0.0005555,120]
[354432310,1740490247185,-5555.0,0.0005555,120]
[354432311,1740490247195,-5555.0,0.0005555,120]
[354432312,1740490247205,-5555.0,0.0005555,120]
[354432313,1740490247215,-5555.0,0.0005555,120]
[354432314,1740490247224,-5555.0,0.0005555,120]
[354432315,1740490247234,-5555.0,0.0005555,120]
[354432316,1740490247243,-5555.0,0.0005555,120]
[354432317,1740490247253,-5555.0,0.0005555,120]
[354432318,1740490247262,-5555.0,0.0005555,120]
[354432319,1740490247271,-5555.0,0.0005555,120]
[354432320,1740490247280,-5555.0,0.0005555,120]
[354432321,1740490247290,-5555.0,0.0005555,120]
[354432322,1740490247299,-5555.0,0.0005555,120]
[354432323,1740490247308,-5555.0,0.0005555,120]
[354432324,1740490247320,-5555.0,0.0005555,120]
[354432325,1740490247330,-5555.0,0.0005555,120]
[354432326,1740490247339,-5555.0,0.0005555,120]
[354432327,1740490247349,-5555.0,0.0005555,120]
[354432328,1740490247360,-5555.0,0.0005555,120]
[354432329,1740490247370,-5555.0,0.0005555,120]
[354432330,1740490247380,-5555.0,0.0005555,120]
[354432331,1740490247390,-5555.0,0.0005555,120]
[354432332,1740490247401,-5555.0,0.0005555,120]
[354432333,1740490247411,-2311.05714469,0.0005555,120]
[354432334,1740490247421,-151.0,0.0005555,120]
[354432335,1740490247431,-151.0,0.0005555,120]
[354432336,1740490247441,-151.0,0.0005555,120]
[354432337,1740490247451,-151.0,0.0005555,120]
[354432338,1740490247461,-158.085853,0.0005555,120]
[354432339,1740490247471,-158.085853,0.0005555,120]
[354432340,1740490247481,-151.07614,0.0005555,120]
[354432341,1740490247491,-151.0,0.0005555,120]
[354432342,1740490247501,-2768.435971,0.0005555,5]
[354432343,1740490247510,-2768.435971,0.0005555,5]
[354432344,1740490247520,-151.0,0.0005555,120]
[354432345,1740490247530,-313.767714,0.0005555,120]
[354432346,1740490247540,-313.767714,0.0005555,120]
[354432347,1740490247550,-151.413482,0.0005555,120]
[354432348,1740490247560,-445.586863,0.0005555,120]
[354432349,1740490247570,-445.586863,0.0005555,120]
[354432350,1740490247657,-285.7,0.0005555,120]
[354432351,1740490247667,-151.0,0.0005555,120]
[354432352,1740490247676,-285.7,0.0005555,120]
[354432353,1740490247685,-151.0,0.0005555,120]
[354432354,1740490247695,-156.24458,0.0005555,120]
[354432355,1740490247704,-151.0,0.0005555,120]
[354432356,1740490247714,-151.0,0.0005555,120]
[354432357,1740490247723,-151.493971,0.0005555,120]
[354432358,1740490247733,-151.0,0.0005555,120]
[354432359,1740490247742,-151.0,0.0005555,120]
[354432360,1740490247752,-151.0,0.0005555,120]
[354432361,1740490247762,-1013.027094,0.0005555,120]
[354432362,1740490247771,-1013.027094,0.0005555,120]
[354432363,1740490247781,-151.0,0.0005555,120]
[354432364,1740490247791,-151.0,0.0005555,120]
[354432365,1740490247800,-735.171632,0.0005555,120]
[354432366,1740490247810,-735.171632,0.0005555,120]
[354432367,1740490247819,-151.0,0.0005555,120]
[354432368,1740490247829,-151.0,0.0005555,120]
[354432369,1740490247839,-151.0,0.0005555,5]
[354432370,1740490247848,-163.90311,0.0005555,120]
[354432371,1740490247858,-151.0,0.0005555,120]
[354432372,1740490247867,-151.0,0.0005555,120]
[354432373,1740490247877,-151.0,0.0005555,120]
[354432374,1740490247886,-223524.0131754,0.0005555,120]
[354432375,1740490247896,-6181.14819078,0.0005569,120]
[354432376,1740490247905,-61785.17917545,0.000557,30]
[354432377,1740490248134,-2372.03573886,0.000557,30]
[354432378,1740490248189,-5421.24260527,0.000557,30]
[354432379,1740490248201,-519.47999996,0.000557,30]
[354432380,1740490251402,-500.0,0.00054794,120]
[354432381,1740490251412,-500.0,0.00054794,120]
[354432382,1740490251422,-504.43446659,0.00054794,120]
[354432383,1740490251431,-500.0,0.00054794,120]
[354432384,1740490251442,-594.49,0.00054794,120]
[354432385,1740490251451,-1596.57553356,0.00054794,6]
[354432389,1740490361555,10000.0,0.0002,10]
[354432391,1740490453237,10000.0,0.0002,10]
[354432392,1740490568347,90000.0,0.00017964,5]
[354432393,1740490568373,29036.24836465,0.00017964,5]
[354432394,1740490568400,100000.0,0.00017964,5]
[354432395,1740490679618,10000.0,0.0002,10]
[354432396,1740490696337,-9914.58135728,0.00017964,5]
[354432397,1740490708856,10000.0,0.0002,10]
[354432398,1740490731855,10000.0,0.0002,10]
[354432399,1740490822591,-131529.16094237,0.00029638,120]
[354432403,1740490862745,356.328108,0.00013699,2]
[354432419,1740490948265,300.0,0.000134,2]
[354432420,1740491103296,500.0,0.000137,2]
[354432421,1740491229166,-5000.0,0.00016448,2]
[354432422,1740491229189,-3156.31844849,0.00016614,2]
[354432424,1740491389076,1946.150456,0.0002,10]
[354432425,1740491390182,640.59,0.00010959,2]
[354432426,1740491400708,533.83,0.00010959,2]
[354432427,1740491403259,500.0,0.000137,2]
[354432428,1740491411371,444.86,0.00010959,2]
[354432429,1740491422256,370.71,0.00010959,2]
[354432447,1740491432595,308.93,0.00010959,2]
[354432473,1740491432839,-5000.0,0.00015295,2]
[354432475,1740491432848,-5000.0,0.00015449,2]
[354432477,1740491432858,-1607.870462,0.00015605,2]
[354432479,1740491432867,-1230.1910814,0.00015717,2]
[354432488,1740491432942,-126.4802839,0.00015717,2]
[354432489,1740491432956,-300.0,0.00016447,2]
[354432492,1740491432972,-349.75862217,0.00016513,2]
[354432494,1740491432986,-41297.47651281,0.00016513,2]
[354432496,1740491432996,-252.1200756,0.00016513,2]
[354432498,1740491433008,-4161.0,0.00016612,2]
[354432500,1740491433018,-4157.0,0.00016612,2]
[354432502,1740491433029,-4157.0,0.00016612,2]
[354432504,1740491433040,-4157.0,0.00016612,2]
[354432505,1740491433051,-4157.0,0.00016612,2]
[354432507,1740491433061,-4157.0,0.00016612,2]
[354432509,1740491433072,-4445.39834972,0.00016682,2]
[354432511,1740491433082,-4867.6573597,0.0001696,5]
[354432513,1740491433093,-356.328108,0.00017123,2]
[354432515,1740491433103,-152.0,0.00017758,2]
[354432517,1740491433113,-24334.31760242,0.00017964,5]
[354432519,1740491433124,-420.0,0.00017974,2]
[354432520,1740491433134,-193.0,0.00018158,2]
[354432521,1740491433145,-246.0,0.00018566,2]
[354432522,1740491433155,-199.0,0.00018984,2]
[354432523,1740491433165,-4842.32516607,0.000193,2]
[354432524,1740491433175,-4842.32516594,0.000193,2]
[354432525,1740491433185,-587.0,0.00019643,2]
[354432526,1740491433195,-4842.32516594,0.00020417,2]
[354432527,1740491433205,-356.328108,0.00020548,2]
[354432528,1740491433218,-823.0,0.00021466,2]
[354432529,1740491433231,-252.12007553,0.00022046,2]
[354432530,1740491433242,-4842.32516594,0.00022176,3]
[354432531,1740491433255,-160.049611,0.00022599,5]
[354432532,1740491433266,-1607.870462,0.00023408,2]
[354432533,1740491433277,-1152.0,0.00023459,2]
[354432534,1740491433288,-416.89,0.0002369,2]
[354432535,1740491433299,-10239.5194802,0.00023784,2]
[354432536,1740491433309,-399.1028089,0.00023885,2]
[354432537,1740491433320,-4842.32516594,0.00023934,3]
[354432538,1740491433330,-356.328108,0.00023973,2]
[354432539,1740491433341,-32811.0577081,0.00024445,2]
[354432540,1740491433351,-998.00399202,0.00024454,2]
[354432541,1740491433362,-19603.87691479,0.00024455,10]
[354432542,1740491433372,-380.0,0.00024658,2]
[354432543,1740491433383,-2171.7800995,0.00024991,2]
[354432544,1740491433393,-287.0,0.00025457,3]
[354432545,1740491433403,-287.0,0.00025457,3]
[354432546,1740491433414,-1613.0,0.00025637,2]
[354432547,1740491433425,-4842.32516594,0.00025693,4]
[354432548,1740491433435,-500.0,0.00025904,2]
[354432549,1740491433445,-500.0,0.00025904,2]
[354432550,1740491433455,-500.0,0.00025904,2]
[354432551,1740491433467,-500.0,0.00025904,2]
[354432552,1740491433477,-500.0,0.00025904,2]
[354432553,1740491433488,-500.0,0.00025904,2]
[354432554,1740491433498,-500.0,0.00025904,2]
[354432555,1740491433509,-500.0,0.00025904,2]
[354432556,1740491433519,-500.0,0.00025904,2]
[354432557,1740491433530,-500.0,0.00025904,2]
[354432558,1740491433540,-500.0,0.00025904,2]
[354432559,1740491433551,-500.0,0.00025904,2]
[354432560,1740491433560,-500.0,0.00025904,2]